[Event "Titled Tuesday Blitz December 14 2021"]
[White "Demchenko, Anton"]
[Black "Lewtak, Damian"]
[WhiteFideId "4160258"]
[BlackFideId "1141724"]
[WhiteElo "2531"]
[BlackElo "2203"]
[Result "1-0"]
[Round "04"]
[TimeControl "180+1"]
[Date "2021.12.15"]
[WhiteClock "0:00:25"]
[BlackClock "0:00:06"]

1. e4 {[%clk 0:03:00]}  b6 {[%clk 0:02:38]} 2. d4 {[%clk 0:03:00]}  Bb7 {[%clk 0:02:37]} 3. Bd3 {[%clk 0:02:59]}  e6 {[%clk 0:02:34]} 4. Nf3 {[%clk 0:02:58]}  g6 {[%clk 0:02:33]} 5. c4 {[%clk 0:02:57]}  Bg7 {[%clk 0:02:33]} 6. Nc3 {[%clk 0:02:57]}  Ne7 {[%clk 0:02:32]} 7. Be3 {[%clk 0:02:48]}  d6 {[%clk 0:02:27]} 8. Qe2 {[%clk 0:02:43]}  Nd7 {[%clk 0:02:27]} 9. O-O-O {[%clk 0:02:38]}  a6 {[%clk 0:02:24]} 10. Kb1 {[%clk 0:02:30]}  Qb8 {[%clk 0:02:24]} 11. Rhe1 {[%clk 0:02:21]}  Nf6 {[%clk 0:02:17]} 12. h3 {[%clk 0:02:04]}  O-O {[%clk 0:02:16]} 13. Qd2 {[%clk 0:01:57]}  b5 {[%clk 0:02:09]} 14. Bh6 {[%clk 0:01:26]}  b4 {[%clk 0:01:57]} 15. Na4 {[%clk 0:01:25]}  Bc6 {[%clk 0:01:57]} 16. Bc2 {[%clk 0:01:25]}  Qe8 {[%clk 0:01:30]} 17. Bxg7 {[%clk 0:01:22]}  Kxg7 {[%clk 0:01:31]} 18. Qxb4 {[%clk 0:01:20]}  Rb8 {[%clk 0:01:28]} 19. Qa5 {[%clk 0:01:19]}  Qc8 {[%clk 0:01:15]} 20. d5 {[%clk 0:01:15]}  Bxa4 {[%clk 0:01:06]} 21. Bxa4 {[%clk 0:01:13]}  Qb7 {[%clk 0:01:07]} 22. Qc3 {[%clk 0:01:13]}  e5 {[%clk 0:01:05]} 23. Nd2 {[%clk 0:01:06]}  Qb4 {[%clk 0:01:05]} 24. Qxb4 {[%clk 0:01:05]}  Rxb4 {[%clk 0:01:06]} 25. Bc2 {[%clk 0:01:04]}  Nd7 {[%clk 0:01:05]} 26. b3 {[%clk 0:00:56]}  Rfb8 {[%clk 0:01:05]} 27. Kb2 {[%clk 0:00:53]}  a5 {[%clk 0:01:05]} 28. Kc3 {[%clk 0:00:53]}  R4b6 {[%clk 0:00:58]} 29. Rb1 {[%clk 0:00:53]}  c5 {[%clk 0:00:57]} 30. g3 {[%clk 0:00:46]}  g5 {[%clk 0:00:42]} 31. Nf1 {[%clk 0:00:44]}  h6 {[%clk 0:00:40]} 32. Ne3 {[%clk 0:00:44]}  R8b7 {[%clk 0:00:36]} 33. Rb2 {[%clk 0:00:43]}  f6 {[%clk 0:00:35]} 34. Reb1 {[%clk 0:00:43]}  Kf8 {[%clk 0:00:33]} 35. a3 {[%clk 0:00:43]}  Kf7 {[%clk 0:00:34]} 36. Bd1 {[%clk 0:00:44]}  Kf8 {[%clk 0:00:34]} 37. Bg4 {[%clk 0:00:43]}  Nb8 {[%clk 0:00:33]} 38. b4 {[%clk 0:00:39]}  axb4+ {[%clk 0:00:30]} 39. axb4 {[%clk 0:00:40]}  Rxb4 {[%clk 0:00:28]} 40. Rxb4 {[%clk 0:00:40]}  Rxb4 {[%clk 0:00:29]} 41. Rxb4 {[%clk 0:00:40]}  cxb4+ {[%clk 0:00:30]} 42. Kxb4 {[%clk 0:00:41]}  Na6+ {[%clk 0:00:30]} 43. Kc3 {[%clk 0:00:35]}  Nc5 {[%clk 0:00:31]} 44. f3 {[%clk 0:00:34]}  Kg7 {[%clk 0:00:25]} 45. h4 {[%clk 0:00:31]}  Kg6 {[%clk 0:00:24]} 46. h5+ {[%clk 0:00:31]}  Kf7 {[%clk 0:00:24]} 47. Nc2 {[%clk 0:00:31]}  Ng8 {[%clk 0:00:20]} 48. Na3 {[%clk 0:00:31]}  f5 {[%clk 0:00:12]} 49. Bxf5 {[%clk 0:00:30]}  Nf6 {[%clk 0:00:12]} 50. g4 {[%clk 0:00:31]}  Ke7 {[%clk 0:00:12]} 51. Nb5 {[%clk 0:00:30]}  Ne8 {[%clk 0:00:11]} 52. Bg6 {[%clk 0:00:31]}  Nf6 {[%clk 0:00:10]} 53. Na7 {[%clk 0:00:29]}  Kd7 {[%clk 0:00:10]} 54. Nb5 {[%clk 0:00:28]}  Ke7 {[%clk 0:00:07]} 55. Na3 {[%clk 0:00:28]}  Kd7 {[%clk 0:00:07]} 56. Nc2 {[%clk 0:00:29]}  Kc7 {[%clk 0:00:07]} 57. Ne3 {[%clk 0:00:29]}  Na4+ {[%clk 0:00:07]} 58. Kd2 {[%clk 0:00:28]}  Nc5 {[%clk 0:00:08]} 59. Nf5 {[%clk 0:00:29]}  Ncxe4+ {[%clk 0:00:05]} 60. fxe4 {[%clk 0:00:28]}  Nxg4 {[%clk 0:00:05]} 61. Ke2 {[%clk 0:00:25]}  Nf6 {[%clk 0:00:06]} 62. Nxh6 {[%clk 0:00:25]} 1-0


[Site "https://www.chess.com"]

[Event "Titled Tuesday Blitz December 14 2021"]
[White "Dobrov, Vladimir"]
[Black "Wang, Justin"]
[WhiteFideId "4136594"]
[BlackFideId "30911370"]
[WhiteElo "2614"]
[BlackElo "2053"]
[Result "0-1"]
[Round "04"]
[TimeControl "180+1"]
[Date "2021.12.14"]
[WhiteClock "0:00:05"]
[BlackClock "0:00:38"]

1. d4 {[%clk 0:03:00]}  Nf6 {[%clk 0:02:52]} 2. c4 {[%clk 0:03:00]}  e6 {[%clk 0:02:50]} 3. Nf3 {[%clk 0:03:00]}  d5 {[%clk 0:02:48]} 4. g3 {[%clk 0:02:55]}  dxc4 {[%clk 0:02:45]} 5. Bg2 {[%clk 0:02:55]}  Bb4+ {[%clk 0:02:43]} 6. Bd2 {[%clk 0:02:54]}  Bxd2+ {[%clk 0:02:43]} 7. Qxd2 {[%clk 0:02:53]}  Bd7 {[%clk 0:02:42]} 8. Na3 {[%clk 0:02:43]}  c3 {[%clk 0:02:40]} 9. bxc3 {[%clk 0:02:40]}  O-O {[%clk 0:02:40]} 10. O-O {[%clk 0:02:40]}  c6 {[%clk 0:02:37]} 11. Rab1 {[%clk 0:02:38]}  Bc8 {[%clk 0:02:35]} 12. Rfe1 {[%clk 0:02:33]}  Nbd7 {[%clk 0:02:33]} 13. e4 {[%clk 0:02:33]}  h6 {[%clk 0:02:31]} 14. e5 {[%clk 0:02:21]}  Nd5 {[%clk 0:02:29]} 15. Nc4 {[%clk 0:02:15]}  b5 {[%clk 0:02:26]} 16. Nd6 {[%clk 0:02:15]}  N7b6 {[%clk 0:02:24]} 17. Qd3 {[%clk 0:01:55]}  a6 {[%clk 0:02:18]} 18. Nd2 {[%clk 0:01:55]}  a5 {[%clk 0:02:16]} 19. N2e4 {[%clk 0:01:55]}  a4 {[%clk 0:02:14]} 20. Nc5 {[%clk 0:01:55]}  Nd7 {[%clk 0:02:11]} 21. c4 {[%clk 0:01:52]}  Nxc5 {[%clk 0:02:10]} 22. dxc5 {[%clk 0:01:53]}  bxc4 {[%clk 0:02:08]} 23. Qxc4 {[%clk 0:01:53]}  Qa5 {[%clk 0:02:07]} 24. Rec1 {[%clk 0:01:49]}  Bd7 {[%clk 0:02:03]} 25. Rb7 {[%clk 0:01:46]}  Bc8 {[%clk 0:02:01]} 26. Rb2 {[%clk 0:01:46]}  Ba6 {[%clk 0:01:56]} 27. Qd4 {[%clk 0:01:42]}  Rfb8 {[%clk 0:01:52]} 28. a3 {[%clk 0:01:36]}  Rb3 {[%clk 0:01:49]} 29. Ra2 {[%clk 0:01:24]}  Rab8 {[%clk 0:01:41]} 30. Be4 {[%clk 0:01:20]}  Nc3 {[%clk 0:01:39]} 31. Rac2 {[%clk 0:01:08]}  Nxe4 {[%clk 0:01:37]} 32. Qxe4 {[%clk 0:01:06]}  Bd3 {[%clk 0:01:29]} 33. Qf4 {[%clk 0:01:04]}  Bxc2 {[%clk 0:01:28]} 34. Qxf7+ {[%clk 0:01:04]}  Kh7 {[%clk 0:01:24]} 35. Rxc2 {[%clk 0:01:05]}  Rb1+ {[%clk 0:01:21]} 36. Kg2 {[%clk 0:01:05]}  Qe1 {[%clk 0:01:17]} 37. Kh3 {[%clk 0:00:42]}  Qxe5 {[%clk 0:01:12]} 38. Rc4 {[%clk 0:00:38]}  Qf6 {[%clk 0:01:09]} 39. Qxf6 {[%clk 0:00:36]}  gxf6 {[%clk 0:01:09]} 40. Rxa4 {[%clk 0:00:37]}  Rd1 {[%clk 0:01:06]} 41. Ra6 {[%clk 0:00:35]}  Rb2 {[%clk 0:01:02]} 42. Rxc6 {[%clk 0:00:22]}  Re1 {[%clk 0:00:57]} 43. f3 {[%clk 0:00:08]}  Rh1 {[%clk 0:00:49]} 44. Kg4 {[%clk 0:00:08]}  Rhxh2 {[%clk 0:00:48]} 45. Kf4 {[%clk 0:00:08]}  Rhe2 {[%clk 0:00:45]} 46. Ne4 {[%clk 0:00:09]}  f5 {[%clk 0:00:43]} 47. Nc3 {[%clk 0:00:07]}  Re1 {[%clk 0:00:41]} 48. Rd6 {[%clk 0:00:07]}  Rc2 {[%clk 0:00:40]} 49. Na4 {[%clk 0:00:05]}  Rc4+ {[%clk 0:00:38]} 0-1


[Site "https://www.chess.com"]

[Event "Titled Tuesday Blitz December 14 2021"]
[White "Dubov, Daniil"]
[Black "Nozdrachev, Leonid"]
[WhiteFideId "24126055"]
[BlackFideId "24113433"]
[WhiteElo "2749"]
[BlackElo "2124"]
[Result "1-0"]
[Round "04"]
[TimeControl "180+1"]
[Date "2021.12.15"]
[WhiteClock "0:00:19"]
[BlackClock "0:00:03"]

1. e4 {[%clk 0:02:42]}  c6 {[%clk 0:02:35]} 2. d4 {[%clk 0:02:41]}  d5 {[%clk 0:02:35]} 3. e5 {[%clk 0:02:42]}  Bf5 {[%clk 0:02:34]} 4. g4 {[%clk 0:02:41]}  Bd7 {[%clk 0:02:33]} 5. Be3 {[%clk 0:02:37]}  c5 {[%clk 0:02:27]} 6. dxc5 {[%clk 0:02:33]}  Nc6 {[%clk 0:02:25]} 7. f4 {[%clk 0:02:31]}  h5 {[%clk 0:02:22]} 8. gxh5 {[%clk 0:02:26]}  Bf5 {[%clk 0:02:22]} 9. Bb5 {[%clk 0:02:23]}  e6 {[%clk 0:02:16]} 10. Nc3 {[%clk 0:02:19]}  Qa5 {[%clk 0:02:07]} 11. Nf3 {[%clk 0:02:07]}  Bg4 {[%clk 0:01:53]} 12. a3 {[%clk 0:01:38]}  Rxh5 {[%clk 0:01:46]} 13. b4 {[%clk 0:01:36]}  Qd8 {[%clk 0:01:46]} 14. Be2 {[%clk 0:01:19]}  Nge7 {[%clk 0:01:37]} 15. Nb5 {[%clk 0:01:16]}  Nf5 {[%clk 0:01:35]} 16. Bf2 {[%clk 0:01:17]}  Rh8 {[%clk 0:01:21]} 17. Ng5 {[%clk 0:00:54]}  Bxe2 {[%clk 0:01:13]} 18. Qxe2 {[%clk 0:00:55]}  Be7 {[%clk 0:01:13]} 19. Nd6+ {[%clk 0:00:53]}  Nxd6 {[%clk 0:01:10]} 20. exd6 {[%clk 0:00:53]}  Bxg5 {[%clk 0:01:10]} 21. fxg5 {[%clk 0:00:54]}  Qxg5 {[%clk 0:01:10]} 22. b5 {[%clk 0:00:43]}  Na5 {[%clk 0:01:03]} 23. Rd1 {[%clk 0:00:34]}  Nc4 {[%clk 0:00:57]} 24. d7+ {[%clk 0:00:29]}  Kd8 {[%clk 0:00:42]} 25. c6 {[%clk 0:00:29]}  bxc6 {[%clk 0:00:39]} 26. bxc6 {[%clk 0:00:30]}  Kc7 {[%clk 0:00:32]} 27. Rg1 {[%clk 0:00:29]}  Qf6 {[%clk 0:00:21]} 28. Rd4 {[%clk 0:00:20]}  Kxc6 {[%clk 0:00:19]} 29. Rxc4+ {[%clk 0:00:17]}  dxc4 {[%clk 0:00:19]} 30. Qxc4+ {[%clk 0:00:18]}  Kxd7 {[%clk 0:00:18]} 31. Qb5+ {[%clk 0:00:19]}  Kd8 {[%clk 0:00:09]} 32. Ke2 {[%clk 0:00:19]}  Rxh2 {[%clk 0:00:03]} 33. Rd1+ {[%clk 0:00:18]}  Ke7 {[%clk 0:00:03]} 34. Qb7+ {[%clk 0:00:19]} 1-0


[Site "https://www.chess.com"]

[Event "Titled Tuesday Blitz December 14 2021"]
[White "Guliev, Logman"]
[Black "Kostiukov, Alexandr"]
[WhiteFideId "13400061"]
[BlackFideId "14108100"]
[WhiteElo "2128"]
[BlackElo "2227"]
[Result "1-0"]
[Round "04"]
[TimeControl "180+1"]
[Date "2021.12.15"]
[WhiteClock "0:00:05"]
[BlackClock "0:00:02"]

1. e4 {[%clk 0:03:00]}  c5 {[%clk 0:02:59]} 2. Nf3 {[%clk 0:02:59]}  g6 {[%clk 0:02:58]} 3. c3 {[%clk 0:02:59]}  Bg7 {[%clk 0:02:57]} 4. Bc4 {[%clk 0:02:58]}  e6 {[%clk 0:02:49]} 5. O-O {[%clk 0:02:57]}  Ne7 {[%clk 0:02:45]} 6. d4 {[%clk 0:02:57]}  cxd4 {[%clk 0:02:44]} 7. cxd4 {[%clk 0:02:56]}  d5 {[%clk 0:02:45]} 8. exd5 {[%clk 0:02:53]}  exd5 {[%clk 0:02:44]} 9. Bb5+ {[%clk 0:02:53]}  Nbc6 {[%clk 0:02:42]} 10. Nc3 {[%clk 0:02:52]}  O-O {[%clk 0:02:41]} 11. h3 {[%clk 0:02:49]}  h6 {[%clk 0:02:41]} 12. Re1 {[%clk 0:02:48]}  Be6 {[%clk 0:02:40]} 13. Bf4 {[%clk 0:02:47]}  Qb6 {[%clk 0:02:34]} 14. Qd2 {[%clk 0:02:28]}  Nxd4 {[%clk 0:02:19]} 15. Nxd4 {[%clk 0:02:23]}  Bxd4 {[%clk 0:02:18]} 16. Bxh6 {[%clk 0:02:21]}  Rfd8 {[%clk 0:02:01]} 17. Bd3 {[%clk 0:02:07]}  Re8 {[%clk 0:01:44]} 18. Re2 {[%clk 0:02:02]}  Nf5 {[%clk 0:01:36]} 19. Bg5 {[%clk 0:01:55]}  Bg7 {[%clk 0:01:29]} 20. Bxf5 {[%clk 0:01:50]}  Bxf5 {[%clk 0:01:26]} 21. Rxe8+ {[%clk 0:01:45]}  Rxe8 {[%clk 0:01:25]} 22. Rd1 {[%clk 0:01:37]}  d4 {[%clk 0:01:18]} 23. Nd5 {[%clk 0:01:35]}  Qd6 {[%clk 0:01:17]} 24. Nb4 {[%clk 0:01:20]}  a5 {[%clk 0:01:10]} 25. Nd3 {[%clk 0:01:18]}  b6 {[%clk 0:01:11]} 26. Bf4 {[%clk 0:01:15]}  Qd5 {[%clk 0:01:10]} 27. b3 {[%clk 0:01:13]}  Rc8 {[%clk 0:01:02]} 28. Bg3 {[%clk 0:01:06]}  Rc3 {[%clk 0:01:00]} 29. Nf4 {[%clk 0:01:02]}  Qc5 {[%clk 0:00:56]} 30. Kh2 {[%clk 0:00:55]}  Rc2 {[%clk 0:00:55]} 31. Qe1 {[%clk 0:00:53]}  Rxa2 {[%clk 0:00:54]} 32. Qe8+ {[%clk 0:00:35]}  Qf8 {[%clk 0:00:54]} 33. Qc6 {[%clk 0:00:34]}  Qb4 {[%clk 0:00:48]} 34. Nd5 {[%clk 0:00:27]}  Qc5 {[%clk 0:00:38]} 35. Qe8+ {[%clk 0:00:20]}  Qf8 {[%clk 0:00:33]} 36. Ne7+ {[%clk 0:00:19]}  Kh7 {[%clk 0:00:32]} 37. Qxf8 {[%clk 0:00:18]}  Bxf8 {[%clk 0:00:33]} 38. Nxf5 {[%clk 0:00:18]}  gxf5 {[%clk 0:00:33]} 39. Rxd4 {[%clk 0:00:18]}  Bc5 {[%clk 0:00:33]} 40. Rf4 {[%clk 0:00:15]}  Kg6 {[%clk 0:00:33]} 41. h4 {[%clk 0:00:14]}  b5 {[%clk 0:00:32]} 42. Rf3 {[%clk 0:00:10]}  a4 {[%clk 0:00:32]} 43. bxa4 {[%clk 0:00:09]}  bxa4 {[%clk 0:00:32]} 44. h5+ {[%clk 0:00:08]}  Kg5 {[%clk 0:00:28]} 45. h6 {[%clk 0:00:08]}  Kxh6 {[%clk 0:00:28]} 46. Rxf5 {[%clk 0:00:08]}  Bd4 {[%clk 0:00:27]} 47. Rxf7 {[%clk 0:00:07]}  a3 {[%clk 0:00:26]} 48. Rd7 {[%clk 0:00:07]}  Rd2 {[%clk 0:00:25]} 49. Bf4+ {[%clk 0:00:05]}  Kg6 {[%clk 0:00:26]} 50. Bxd2 {[%clk 0:00:06]}  a2 {[%clk 0:00:26]} 51. Rd6+ {[%clk 0:00:04]}  Kf5 {[%clk 0:00:25]} 52. Ra6 {[%clk 0:00:04]}  a1=Q {[%clk 0:00:25]} 53. Rxa1 {[%clk 0:00:04]}  Bxa1 {[%clk 0:00:25]} 54. f3 {[%clk 0:00:03]}  Be5+ {[%clk 0:00:25]} 55. Kh3 {[%clk 0:00:03]}  Kf6 {[%clk 0:00:24]} 56. g4 {[%clk 0:00:04]}  Kg6 {[%clk 0:00:23]} 57. f4 {[%clk 0:00:04]}  Bd4 {[%clk 0:00:21]} 58. Kg3 {[%clk 0:00:05]}  Bc5 {[%clk 0:00:21]} 59. Kf3 {[%clk 0:00:05]}  Be7 {[%clk 0:00:18]} 60. Ke4 {[%clk 0:00:06]}  Bh4 {[%clk 0:00:15]} 61. f5+ {[%clk 0:00:06]}  Kf7 {[%clk 0:00:15]} 62. g5 {[%clk 0:00:06]}  Bg3 {[%clk 0:00:13]} 63. g6+ {[%clk 0:00:06]}  Kg7 {[%clk 0:00:12]} 64. Bc3+ {[%clk 0:00:06]}  Kh6 {[%clk 0:00:12]} 65. Kd5 {[%clk 0:00:06]}  Bc7 {[%clk 0:00:08]} 66. Ke6 {[%clk 0:00:06]}  Bd8 {[%clk 0:00:07]} 67. Kf7 {[%clk 0:00:06]}  Ba5 {[%clk 0:00:06]} 68. g7 {[%clk 0:00:06]}  Bxc3 {[%clk 0:00:05]} 69. g8=Q {[%clk 0:00:06]}  Kh5 {[%clk 0:00:05]} 70. Qg3 {[%clk 0:00:05]}  Bd4 {[%clk 0:00:03]} 71. f6 {[%clk 0:00:05]}  Ba1 {[%clk 0:00:02]} 72. Ke6 {[%clk 0:00:05]} 1-0


[Site "https://www.chess.com"]

[Event "Titled Tuesday Blitz December 14 2021"]
[White "Dronavalli, Harika"]
[Black "Grigoriants, Sergey"]
[WhiteFideId "5015197"]
[BlackFideId "4130804"]
[WhiteElo "2382"]
[BlackElo "2502"]
[Result "1/2-1/2"]
[Round "04"]
[TimeControl "180+1"]
[Date "2021.12.14"]
[WhiteClock "0:00:20"]
[BlackClock "0:00:06"]

1. e4 {[%clk 0:03:00]}  c6 {[%clk 0:02:59]} 2. d4 {[%clk 0:02:56]}  d5 {[%clk 0:02:59]} 3. exd5 {[%clk 0:02:55]}  cxd5 {[%clk 0:02:59]} 4. c3 {[%clk 0:02:56]}  Nc6 {[%clk 0:02:57]} 5. Bf4 {[%clk 0:02:56]}  Bf5 {[%clk 0:02:57]} 6. Nd2 {[%clk 0:02:55]}  e6 {[%clk 0:02:57]} 7. Qb3 {[%clk 0:02:54]}  Qc8 {[%clk 0:02:55]} 8. Ngf3 {[%clk 0:02:54]}  Nf6 {[%clk 0:02:49]} 9. Be2 {[%clk 0:02:52]}  Be7 {[%clk 0:02:49]} 10. O-O {[%clk 0:02:46]}  O-O {[%clk 0:02:48]} 11. h3 {[%clk 0:02:45]}  Ne4 {[%clk 0:02:38]} 12. Rfe1 {[%clk 0:02:44]}  Bd6 {[%clk 0:02:34]} 13. Bxd6 {[%clk 0:02:40]}  Nxd6 {[%clk 0:02:35]} 14. Nf1 {[%clk 0:02:27]}  b5 {[%clk 0:02:33]} 15. Nh4 {[%clk 0:02:24]}  Be4 {[%clk 0:02:30]} 16. a3 {[%clk 0:02:16]}  Rb8 {[%clk 0:02:29]} 17. Ng3 {[%clk 0:02:04]}  Na5 {[%clk 0:02:11]} 18. Qd1 {[%clk 0:02:04]}  Nac4 {[%clk 0:02:11]} 19. Ra2 {[%clk 0:02:04]}  a5 {[%clk 0:02:08]} 20. Bd3 {[%clk 0:01:43]}  f5 {[%clk 0:01:21]} 21. Nf3 {[%clk 0:01:36]}  h6 {[%clk 0:01:09]} 22. Bf1 {[%clk 0:01:17]}  Bxf3 {[%clk 0:01:04]} 23. Qxf3 {[%clk 0:01:16]}  Ne4 {[%clk 0:01:04]} 24. Qd1 {[%clk 0:00:57]}  Nxg3 {[%clk 0:01:00]} 25. fxg3 {[%clk 0:00:57]}  Nd6 {[%clk 0:01:00]} 26. g4 {[%clk 0:00:53]}  Ne4 {[%clk 0:00:59]} 27. Bd3 {[%clk 0:00:53]}  Qc7 {[%clk 0:00:48]} 28. gxf5 {[%clk 0:00:52]}  exf5 {[%clk 0:00:47]} 29. Qf3 {[%clk 0:00:44]}  Qd6 {[%clk 0:00:44]} 30. Raa1 {[%clk 0:00:43]}  Kh8 {[%clk 0:00:27]} 31. Re2 {[%clk 0:00:42]}  b4 {[%clk 0:00:26]} 32. axb4 {[%clk 0:00:42]}  axb4 {[%clk 0:00:26]} 33. Bxe4 {[%clk 0:00:30]}  fxe4 {[%clk 0:00:25]} 34. Qe3 {[%clk 0:00:31]}  bxc3 {[%clk 0:00:24]} 35. bxc3 {[%clk 0:00:31]}  Rbc8 {[%clk 0:00:24]} 36. Rc1 {[%clk 0:00:30]}  Rc4 {[%clk 0:00:24]} 37. Rf2 {[%clk 0:00:28]}  Rxf2 {[%clk 0:00:20]} 38. Qxf2 {[%clk 0:00:29]}  Qe6 {[%clk 0:00:17]} 39. Qf4 {[%clk 0:00:25]}  Kh7 {[%clk 0:00:17]} 40. Qe3 {[%clk 0:00:25]}  Rc8 {[%clk 0:00:16]} 41. Rf1 {[%clk 0:00:24]}  Qc6 {[%clk 0:00:14]} 42. Rf5 {[%clk 0:00:22]}  Qxc3 {[%clk 0:00:06]} 43. Qxc3 {[%clk 0:00:22]}  Rxc3 {[%clk 0:00:07]} 44. Rxd5 {[%clk 0:00:22]}  Rd3 {[%clk 0:00:08]} 45. Kf2 {[%clk 0:00:21]}  Kg6 {[%clk 0:00:07]} 46. h4 {[%clk 0:00:20]}  Kf6 {[%clk 0:00:06]} 47. h5 {[%clk 0:00:20]} 1/2-1/2


[Site "https://www.chess.com"]

[Event "Titled Tuesday Blitz December 14 2021"]
[White "Ibrahimli, Murad"]
[Black "Secheres, Adrian-Simion"]
[WhiteFideId "13410229"]
[BlackFideId "1217445"]
[WhiteElo "2874"]
[BlackElo "2740"]
[Result "1-0"]
[Round "04"]
[TimeControl "180+1"]
[Date "2021.12.14"]
[WhiteClock "0:00:35"]
[BlackClock "0:00:07"]

1. d4 {[%clk 0:03:00]}  Nf6 {[%clk 0:02:59]} 2. c4 {[%clk 0:02:59]}  g6 {[%clk 0:02:59]} 3. Nc3 {[%clk 0:02:58]}  Bg7 {[%clk 0:03:00]} 4. e4 {[%clk 0:02:57]}  d6 {[%clk 0:03:00]} 5. Nf3 {[%clk 0:02:57]}  O-O {[%clk 0:03:00]} 6. Be2 {[%clk 0:02:57]}  e5 {[%clk 0:03:01]} 7. Be3 {[%clk 0:02:53]}  Ng4 {[%clk 0:02:59]} 8. Bg5 {[%clk 0:02:52]}  f6 {[%clk 0:02:59]} 9. Bh4 {[%clk 0:02:52]}  Nc6 {[%clk 0:02:53]} 10. d5 {[%clk 0:02:52]}  Ne7 {[%clk 0:02:51]} 11. Nd2 {[%clk 0:02:53]}  Nh6 {[%clk 0:02:48]} 12. f3 {[%clk 0:02:51]}  Nf7 {[%clk 0:02:40]} 13. Qc2 {[%clk 0:02:50]}  f5 {[%clk 0:02:37]} 14. O-O-O {[%clk 0:02:48]}  a6 {[%clk 0:02:31]} 15. Kb1 {[%clk 0:02:46]}  Qe8 {[%clk 0:02:30]} 16. Nb3 {[%clk 0:02:37]}  fxe4 {[%clk 0:02:24]} 17. fxe4 {[%clk 0:02:36]}  g5 {[%clk 0:02:24]} 18. Be1 {[%clk 0:02:21]}  b6 {[%clk 0:02:21]} 19. h4 {[%clk 0:02:18]}  g4 {[%clk 0:02:19]} 20. g3 {[%clk 0:02:17]}  h5 {[%clk 0:02:18]} 21. Bd2 {[%clk 0:02:15]}  Bd7 {[%clk 0:02:03]} 22. Rhf1 {[%clk 0:02:12]}  Rc8 {[%clk 0:01:30]} 23. Be3 {[%clk 0:02:05]}  Ng6 {[%clk 0:01:27]} 24. Qd2 {[%clk 0:01:53]}  Kh7 {[%clk 0:01:27]} 25. Rf2 {[%clk 0:01:51]}  Nh6 {[%clk 0:01:26]} 26. Rdf1 {[%clk 0:01:50]}  Rxf2 {[%clk 0:01:26]} 27. Rxf2 {[%clk 0:01:51]}  Qg8 {[%clk 0:01:26]} 28. c5 {[%clk 0:01:46]}  bxc5 {[%clk 0:01:25]} 29. Bxa6 {[%clk 0:01:46]}  Rf8 {[%clk 0:01:25]} 30. Bc4 {[%clk 0:01:32]}  Rxf2 {[%clk 0:01:23]} 31. Qxf2 {[%clk 0:01:33]}  Qd8 {[%clk 0:01:18]} 32. Na5 {[%clk 0:01:31]}  Bf6 {[%clk 0:01:13]} 33. Nc6 {[%clk 0:01:24]}  Bxc6 {[%clk 0:00:39]} 34. dxc6 {[%clk 0:01:24]}  Nxh4 {[%clk 0:00:40]} 35. gxh4 {[%clk 0:01:20]}  Bxh4 {[%clk 0:00:41]} 36. Qd2 {[%clk 0:01:19]}  Ng8 {[%clk 0:00:32]} 37. Be6 {[%clk 0:01:16]}  g3 {[%clk 0:00:26]} 38. Bf5+ {[%clk 0:01:14]}  Kh8 {[%clk 0:00:25]} 39. Qe2 {[%clk 0:01:11]}  Nf6 {[%clk 0:00:23]} 40. Nd5 {[%clk 0:01:10]}  Qe8 {[%clk 0:00:18]} 41. Nxf6 {[%clk 0:00:51]}  Bxf6 {[%clk 0:00:19]} 42. Qf3 {[%clk 0:00:51]}  h4 {[%clk 0:00:12]} 43. Bh3 {[%clk 0:00:51]}  Qg6 {[%clk 0:00:11]} 44. Qf5 {[%clk 0:00:47]}  Qxf5 {[%clk 0:00:08]} 45. Bxf5 {[%clk 0:00:43]}  g2 {[%clk 0:00:08]} 46. Bh3 {[%clk 0:00:43]}  Bg5 {[%clk 0:00:09]} 47. Bg1 {[%clk 0:00:43]}  d5 {[%clk 0:00:08]} 48. Bxg2 {[%clk 0:00:37]}  d4 {[%clk 0:00:07]} 49. b3 {[%clk 0:00:38]}  Bd2 {[%clk 0:00:06]} 50. Kc2 {[%clk 0:00:35]}  Bb4 {[%clk 0:00:05]} 51. Bf2 {[%clk 0:00:35]}  h3 {[%clk 0:00:05]} 52. Bxh3 {[%clk 0:00:35]}  Kg7 {[%clk 0:00:06]} 53. Kd3 {[%clk 0:00:35]}  Kf6 {[%clk 0:00:07]} 54. Bh4+ {[%clk 0:00:35]}  Kf7 {[%clk 0:00:07]} 55. Bd8 {[%clk 0:00:35]}  Ba5 {[%clk 0:00:07]} 56. Kc4 {[%clk 0:00:36]}  Bb6 {[%clk 0:00:07]} 57. a4 {[%clk 0:00:35]}  Ke8 {[%clk 0:00:07]} 58. Bf6 {[%clk 0:00:35]} 1-0


[Site "https://www.chess.com"]

[Event "Titled Tuesday Blitz December 14 2021"]
[White "Janaszak, Dawid"]
[Black "Pakleza, Zbigniew"]
[WhiteFideId "1119206"]
[BlackFideId "1119290"]
[WhiteElo "2215"]
[BlackElo "2526"]
[Result "0-1"]
[Round "04"]
[TimeControl "180+1"]
[Date "2021.12.14"]
[WhiteClock "0:00:03"]
[BlackClock "0:00:20"]

1. e4 {[%clk 0:03:00]}  d6 {[%clk 0:03:00]} 2. Nc3 {[%clk 0:03:00]}  Nf6 {[%clk 0:03:01]} 3. d4 {[%clk 0:02:58]}  c6 {[%clk 0:03:01]} 4. a4 {[%clk 0:02:47]}  Nbd7 {[%clk 0:03:00]} 5. Nge2 {[%clk 0:02:46]}  e5 {[%clk 0:03:01]} 6. g3 {[%clk 0:02:46]}  b6 {[%clk 0:02:59]} 7. Bg2 {[%clk 0:02:45]}  a6 {[%clk 0:03:00]} 8. h3 {[%clk 0:02:44]}  Bb7 {[%clk 0:03:00]} 9. g4 {[%clk 0:02:40]}  b5 {[%clk 0:03:00]} 10. axb5 {[%clk 0:02:20]}  axb5 {[%clk 0:03:01]} 11. Rxa8 {[%clk 0:02:20]}  Bxa8 {[%clk 0:03:02]} 12. Be3 {[%clk 0:02:10]}  g6 {[%clk 0:02:14]} 13. Ng3 {[%clk 0:01:52]}  h5 {[%clk 0:02:04]} 14. g5 {[%clk 0:01:41]}  h4 {[%clk 0:02:05]} 15. Nge2 {[%clk 0:01:37]}  Nh7 {[%clk 0:01:57]} 16. Qd2 {[%clk 0:01:26]}  Be7 {[%clk 0:01:57]} 17. f4 {[%clk 0:01:18]}  exf4 {[%clk 0:01:50]} 18. Nxf4 {[%clk 0:01:17]}  Bxg5 {[%clk 0:01:42]} 19. O-O {[%clk 0:01:17]}  O-O {[%clk 0:01:39]} 20. Qf2 {[%clk 0:00:44]}  b4 {[%clk 0:01:19]} 21. Nce2 {[%clk 0:00:42]}  Qe7 {[%clk 0:01:13]} 22. Ra1 {[%clk 0:00:39]}  Ndf6 {[%clk 0:00:59]} 23. e5 {[%clk 0:00:31]}  dxe5 {[%clk 0:00:44]} 24. dxe5 {[%clk 0:00:32]}  Qxe5 {[%clk 0:00:45]} 25. Bd4 {[%clk 0:00:32]}  Qf5 {[%clk 0:00:42]} 26. Bc5 {[%clk 0:00:29]}  Re8 {[%clk 0:00:38]} 27. Bxb4 {[%clk 0:00:20]}  Ne4 {[%clk 0:00:36]} 28. Qe3 {[%clk 0:00:15]}  c5 {[%clk 0:00:35]} 29. Be1 {[%clk 0:00:09]}  Bb7 {[%clk 0:00:23]} 30. Ra7 {[%clk 0:00:08]}  Nd6 {[%clk 0:00:23]} 31. Qd3 {[%clk 0:00:04]}  Bxg2 {[%clk 0:00:22]} 32. Qxf5 {[%clk 0:00:02]}  Nxf5 {[%clk 0:00:19]} 33. Kxg2 {[%clk 0:00:03]}  Bxf4 {[%clk 0:00:19]} 34. Nxf4 {[%clk 0:00:03]}  Rxe1 {[%clk 0:00:20]} 0-1


[Site "https://www.chess.com"]